Workbook

Sheet Estiiu2014
C4: Temps | D4: Cl | G4: P | H4: F | I4: C | J4: D
C5: =SUM(C11:C189) -> 09:46:00 | D5: =RANK(E5,E$5:E$9) -> 1 | E5: =+H5/10000+J5+G5*10000 -> 300017.157 | F5: =+Y$8 -> Mercè | G5: =+T$90 -> 30 | H5: =+U$90 -> 1570 | I5: =+V$90 -> 1553 | J5: =+W$90 -> 17 | X5: 1 | Y5: Josep Mª
D6: =RANK(E6,E$5:E$9) -> 2 | E6: =+H6/10000+J6+G6*10000 -> 280024.1597 | F6: =+Y$7 -> Jordi | G6: =+T$65 -> 28 | H6: =+U$65 -> 1597 | I6: =+V$65 -> 1573 | J6: =+W$65 -> 24 | X6: 2 | Y6: Carles
D7: =RANK(E7,E$5:E$9) -> 3 | E7: =+H7/10000+J7+G7*10000 -> 280017.1566 | F7: =+Y$5 -> Josep Mª | G7: =+T$15 -> 28 | H7: =+U$15 -> 1566 | I7: =+V$15 -> 1549 | J7: =+W$15 -> 17 | X7: 3 | Y7: Jordi
D8: =RANK(E8,E$5:E$9) -> 4 | E8: =+H8/10000+J8+G8*10000 -> 279977.6537 | F8: =+Y$9 -> Sergi | G8: =+T$115 -> 28 | H8: =+U$115 -> 1537 | I8: =+V$115 -> 1559.5 | J8: =+W$115 -> -22.5 | X8: 4 | Y8: Mercè
D9: =RANK(E9,E$5:E$9) -> 5 | E9: =+H9/10000+J9+G9*10000 -> 259964.6556 | F9: =+Y$6 -> Carles | G9: =+T$40 -> 26 | H9: =+U$40 -> 1556 | I9: =+V$40 -> 1591.5 | J9: =+W$40 -> -35.5 | X9: 5 | Y9: Sergi
A10: Sopar | B10: Casino Foment
A11: Inici | B11: 21:19:00
A12: Final | B12: 23:37:00
G14: P | H14: F | I14: C | J14: D
A15: Inici | B15: 18:38:00 | C15: =IF(Z15=5,B16-B15,0) -> 00:58:00 | D15: 1 | E15: =+D15 -> 1 | F15: 1 | G15: 1 | H15: 112 | I15: =+H16 -> 121 | J15: =+H15-I15 -> -9 | M15: 1 | N15: 1 | O15: 1 | P15: 112 | Q15: 121 | R15: -9 | T15: =SUM(O15:O39) -> 28 | U15: =SUM(P15:P39) -> 1566 | V15: 1549 | W15: 17 | Z15: =COUNTA(G15:G20) -> 5
A16: Final | B16: 19:36:00 | E16: =+D15 -> 1 | F16: 2 | G16: 3 | H16: 121 | I16: =+H15 -> 112 | J16: =+H16-I16 -> 9 | M16: 2 | N16: 1 | O16: 3 | P16: 121 | Q16: 97.5 | R16: 23.5
M17: 3 | N17: 1 | O17: 1 | P17: 116 | Q17: 121 | R17: -5
E18: =+D15 -> 1 | F18: 3 | G18: 1 | H18: 109 | I18: =+(H19+H20)/2 -> 115.5 | J18: =+H18-I18 -> -6.5 | M18: 4 | N18: 1 | O18: 3 | P18: 121 | Q18: 112.5 | R18: 8.5
E19: =+D15 -> 1 | F19: 4 | G19: 3 | H19: 121 | I19: =+(H18+H20)/2 -> 109.5 | J19: 11.5 | M19: 5 | N19: 1 | O19: 3 | P19: 121 | Q19: 111 | R19: 10
E20: =+D15 -> 1 | F20: 5 | G20: 2 | H20: 110 | I20: =+(H18+H19)/2 -> 115 | J20: -5 | M20: 6 | N20: 1 | O20: 1 | P20: 103 | Q20: 113.5 | R20: -10.5
A21: 00:05:00 | C21: =IF(Z15=5,A21,B21) -> 00:05:00 | M21: 7 | N21: 1 | O21: 3 | P21: 121 | Q21: 99 | R21: 22
A22: Inici | B22: 19:46:00 | C22: =IF(Z22=5,B23-B22,0) -> 00:28:00 | D22: =+D15+1 -> 2 | E22: =+D22 -> 2 | F22: 3 | G22: 3 | H22: 121 | I22: =+H23 -> 106 | J22: =+H22-I22 -> 15 | M22: 8 | N22: 1 | O22: 1 | P22: 98 | Q22: 115 | R22: -17 | Z22: =COUNTA(G22:G27) -> 5
A23: Final | B23: 20:14:00 | E23: =+D22 -> 2 | F23: 4 | G23: 1 | H23: 106 | I23: =+H22 -> 121 | J23: =+H23-I23 -> -15 | M23: 9 | N23: 1 | O23: 3 | P23: 121 | Q23: 97.5 | R23: 23.5
M24: 10 | N24: 1 | O24: 2 | P24: 110 | Q24: 114.5 | R24: -4.5
E25: =+D22 -> 2 | F25: 1 | G25: 3 | H25: 121 | I25: =+(H26+H27)/2 -> 97.5 | J25: =+H25-I25 -> 23.5 | M25: 11 | N25: 1 | O25: 3 | P25: 121 | Q25: 109 | R25: 12
E26: =+D22 -> 2 | F26: 2 | G26: 2 | H26: 103 | I26: =+(H25+H27)/2 -> 106.5 | J26: -3.5 | M26: 12 | N26: 1 | O26: 2 | P26: 107 | Q26: 110 | R26: -3
E27: =+D22 -> 2 | F27: 5 | G27: 1 | H27: 92 | I27: =+(H25+H26)/2 -> 112 | J27: -20 | M27: 13 | N27: 1 | O27: 1 | P27: 107 | Q27: 121 | R27: -14
A28: 00:05:00 | C28: =IF(Z22=5,A28,B28) -> 00:05:00 | M28: 14 | N28: 1 | O28: 1 | P28: 87 | Q28: 106.5 | R28: -19.5
A29: Inici | B29: 20:21:00 | C29: =IF(Z29=5,B30-B29,0) -> 00:53:00 | D29: =+D22+1 -> 3 | E29: =+D29 -> 3 | F29: 1 | G29: 1 | H29: 116 | I29: =+H30 -> 121 | J29: =+H29-I29 -> -5 | M29: 15 | N29: 1 | Q29: 0 | R29: 0 | Z29: =COUNTA(G29:G34) -> 5
A30: Final | B30: 21:14:00 | E30: =+D29 -> 3 | F30: 3 | G30: 3 | H30: 121 | I30: =+H29 -> 116 | J30: =+H30-I30 -> 5 | M30: 16 | N30: 1 | Q30: 0 | R30: 0
M31: 17 | N31: 1 | Q31: 0 | R31: 0
E32: =+D29 -> 3 | F32: 2 | G32: 2 | H32: 120 | I32: =+(H33+H34)/2 -> 110.5 | J32: =+H32-I32 -> 9.5 | M32: 18 | N32: 1 | Q32: 0 | R32: 0
E33: =+D29 -> 3 | F33: 4 | G33: 3 | H33: 121 | I33: =+(H32+H34)/2 -> 110 | J33: 11 | M33: 19 | N33: 1 | Q33: 0 | R33: 0
E34: =+D29 -> 3 | F34: 5 | G34: 1 | H34: 100 | I34: =+(H32+H33)/2 -> 120.5 | J34: -20.5 | M34: 20 | N34: 1 | Q34: 0 | R34: 0
A35: 00:05:00 | C35: =IF(Z29=5,A35,B35) -> 00:05:00 | M35: 21 | N35: 1 | Q35: 0 | R35: 0
A36: Inici | B36: 23:37:00 | C36: =IF(Z36=5,B37-B36,0) -> 00:27:00 | D36: =+D29+1 -> 4 | E36: =+D36 -> 4 | F36: 2 | G36: 1 | H36: 84 | I36: =+H37 -> 121 | J36: =+H36-I36 -> -37 | M36: 22 | N36: 1 | Q36: 0 | R36: 0 | Y36: Casino Foment | Z36: =COUNTA(G36:G41) -> 5
A37: Final | B37: 1.002777778 | E37: =+D36 -> 4 | F37: 5 | G37: 3 | H37: 121 | I37: =+H36 -> 84 | J37: =+H37-I37 -> 37 | M37: 23 | N37: 1 | Q37: 0 | R37: 0
M38: 24 | N38: 1 | Q38: 0 | R38: 0
E39: =+D36 -> 4 | F39: 1 | G39: 3 | H39: 121 | I39: =+(H40+H41)/2 -> 112.5 | J39: =+H39-I39 -> 8.5 | M39: 25 | N39: 1 | Q39: 0 | R39: 0
E40: =+D36 -> 4 | F40: 3 | G40: 2 | H40: 116 | I40: =+(H39+H41)/2 -> 115 | J40: 1 | M40: 1 | N40: 2 | O40: 3 | P40: 121 | Q40: 112 | R40: 9 | T40: =SUM(O40:O64) -> 26 | U40: =SUM(P40:P64) -> 1556 | V40: =SUM(Q40:Q64) -> 1591.5 | W40: =SUM(R40:R64) -> -35.5
E41: =+D36 -> 4 | F41: 4 | G41: 1 | H41: 109 | I41: =+(H39+H40)/2 -> 118.5 | J41: -9.5 | M41: 2 | N41: 2 | O41: 2 | P41: 103 | Q41: 106.5 | R41: -3.5
A42: 00:05:00 | C42: =IF(Z36=5,A42,B42) -> 00:05:00 | M42: 3 | N42: 2 | O42: 2 | P42: 120 | Q42: 110.5 | R42: 9.5
A43: Inici | B43: 1.010416667 | C43: =IF(Z43=5,B44-B43,0) -> 00:41:00 | D43: =+D36+1 -> 5 | E43: =+D43 -> 5 | F43: 1 | G43: 3 | H43: 121 | I43: =+H44 -> 111 | J43: =+H43-I43 -> 10 | M43: 4 | N43: 2 | O43: 1 | P43: 84 | Q43: 121 | R43: -37 | Y43: Casino Foment | Z43: =COUNTA(G43:G48) -> 5
A44: Final | B44: 1.038888889 | E44: =+D43 -> 5 | F44: 4 | G44: 1 | H44: 111 | I44: =+H43 -> 121 | J44: =+H44-I44 -> -10 | M44: 5 | N44: 2 | O44: 3 | P44: 121 | Q44: 114 | R44: 7
M45: 6 | N45: 2 | O45: 3 | P45: 121 | Q45: 104.5 | R45: 16.5
E46: =+D43 -> 5 | F46: 2 | G46: 3 | H46: 121 | I46: =+(H47+H48)/2 -> 114 | J46: =+H46-I46 -> 7 | M46: 7 | N46: 2 | O46: 2 | P46: 120 | Q46: 109 | R46: 11
E47: =+D43 -> 5 | F47: 3 | G47: 1 | H47: 111 | I47: =+(H46+H48)/2 -> 119 | J47: -8 | M47: 8 | N47: 2 | O47: 1 | P47: 92 | Q47: 121 | R47: -29
E48: =+D43 -> 5 | F48: 5 | G48: 2 | H48: 117 | I48: =+(H46+H47)/2 -> 116 | J48: 1 | M48: 9 | N48: 2 | O48: 1 | P48: 109 | Q48: 121 | R48: -12
A49: 00:05:00 | C49: =IF(Z43=5,A49,B49) -> 00:05:00 | M49: 10 | N49: 2 | O49: 1 | P49: 108 | Q49: 115.5 | R49: -7.5
A50: Inici | B50: 01:00:00 | C50: =IF(Z50=5,B51-B50,0) -> 00:38:00 | D50: =+D43+1 -> 6 | E50: =+D50 -> 6 | F50: 3 | G50: 1 | H50: 110 | I50: =+H51 -> 121 | J50: =+H50-I50 -> -11 | M50: 11 | N50: 2 | O50: 1 | P50: 109 | Q50: 121 | R50: -12 | Y50: Casino Foment | Z50: =COUNTA(G50:G55) -> 5
A51: Final | B51: 01:38:00 | E51: =+D50 -> 6 | F51: 5 | G51: 3 | H51: 121 | I51: =+H50 -> 110 | J51: =+H51-I51 -> 11 | M51: 12 | N51: 2 | O51: 3 | P51: 121 | Q51: 103 | R51: 18
M52: 13 | N52: 2 | O52: 2 | P52: 118 | Q52: 111.5 | R52: 6.5
E53: =+D50 -> 6 | F53: 1 | G53: 1 | H53: 103 | I53: =+(H54+H55)/2 -> 113.5 | J53: =+H53-I53 -> -10.5 | M53: 14 | N53: 2 | O53: 1 | P53: 109 | Q53: 121 | R53: -12
E54: =+D50 -> 6 | F54: 2 | G54: 3 | H54: 121 | I54: =+(H53+H55)/2 -> 104.5 | J54: 16.5 | M54: 15 | N54: 2 | Q54: 0 | R54: 0
E55: =+D50 -> 6 | F55: 4 | G55: 2 | H55: 106 | I55: =+(H53+H54)/2 -> 112 | J55: -6 | M55: 16 | N55: 2 | Q55: 0 | R55: 0
A56: 00:05:00 | C56: =IF(Z50=5,A56,B56) -> 00:05:00 | M56: 17 | N56: 2 | Q56: 0 | R56: 0
A57: Inici | B57: 01:44:00 | C57: =IF(Z57=5,B58-B57,0) -> 00:45:00 | D57: =+D50+1 -> 7 | E57: =+D57 -> 7 | F57: 1 | G57: 3 | H57: 121 | I57: =+H58 -> 99 | J57: =+H57-I57 -> 22 | M57: 18 | N57: 2 | Q57: 0 | R57: 0 | Y57: Casino Foment | Z57: =COUNTA(G57:G62) -> 5
A58: Final | B58: 02:29:00 | E58: =+D57 -> 7 | F58: 5 | G58: 1 | H58: 99 | I58: =+H57 -> 121 | J58: =+H58-I58 -> -22 | M58: 19 | N58: 2 | Q58: 0 | R58: 0
M59: 20 | N59: 2 | Q59: 0 | R59: 0
E60: =+D57 -> 7 | F60: 2 | G60: 2 | H60: 120 | I60: =+(H61+H62)/2 -> 109 | J60: =+H60-I60 -> 11 | M60: 21 | N60: 2 | Q60: 0 | R60: 0
E61: =+D57 -> 7 | F61: 3 | G61: 1 | H61: 97 | I61: =+(H60+H62)/2 -> 120.5 | J61: -23.5 | M61: 22 | N61: 2 | Q61: 0 | R61: 0
E62: =+D57 -> 7 | F62: 4 | G62: 3 | H62: 121 | I62: =+(H60+H61)/2 -> 108.5 | J62: 12.5 | M62: 23 | N62: 2 | Q62: 0 | R62: 0
A63: 00:05:00 | C63: =IF(Z57=5,A63,B63) -> 00:05:00 | M63: 24 | N63: 2 | Q63: 0 | R63: 0
A64: Inici | B64: 03:08:00 | C64: =IF(Z64=5,B65-B64,0) -> 00:29:00 | D64: =+D57+1 -> 8 | E64: =+D64 -> 8 | F64: 2 | G64: 1 | H64: 92 | I64: =+H65 -> 121 | J64: =+H64-I64 -> -29 | M64: 25 | N64: 2 | Q64: 0 | R64: 0 | Z64: =COUNTA(G64:G69) -> 5
A65: Final | B65: 03:37:00 | E65: =+D64 -> 8 | F65: 4 | G65: 3 | H65: 121 | I65: =+H64 -> 92 | J65: =+H65-I65 -> 29 | M65: 1 | N65: 3 | O65: 1 | P65: 109 | Q65: 115.5 | R65: -6.5 | T65: =SUM(O65:O89) -> 28 | U65: =SUM(P65:P89) -> 1597 | V65: =SUM(Q65:Q89) -> 1573 | W65: =SUM(R65:R89) -> 24
M66: 2 | N66: 3 | O66: 3 | P66: 121 | Q66: 106 | R66: 15
E67: =+D64 -> 8 | F67: 1 | G67: 1 | H67: 98 | I67: =+(H68+H69)/2 -> 115 | J67: =+H67-I67 -> -17 | M67: 3 | N67: 3 | O67: 3 | P67: 121 | Q67: 116 | R67: 5
E68: =+D64 -> 8 | F68: 3 | G68: 2 | H68: 109 | I68: =+(H67+H69)/2 -> 109.5 | J68: -0.5 | M68: 4 | N68: 3 | O68: 2 | P68: 116 | Q68: 115 | R68: 1
E69: =+D64 -> 8 | F69: 5 | G69: 3 | H69: 121 | I69: =+(H67+H68)/2 -> 103.5 | J69: 17.5 | M69: 5 | N69: 3 | O69: 1 | P69: 111 | Q69: 119 | R69: -8
A70: 00:05:00 | C70: =IF(Z64=5,A70,B70) -> 00:05:00 | M70: 6 | N70: 3 | O70: 1 | P70: 110 | Q70: 121 | R70: -11
A71: Inici | B71: 03:45:00 | C71: =IF(Z71=5,B72-B71,0) -> 00:32:00 | D71: =+D64+1 -> 9 | E71: =+D71 -> 9 | F71: 2 | G71: 1 | H71: 109 | I71: =+H72 -> 121 | J71: =+H71-I71 -> -12 | M71: 7 | N71: 3 | O71: 1 | P71: 97 | Q71: 120.5 | R71: -23.5 | Z71: =COUNTA(G71:G76) -> 5
A72: Final | B72: 04:17:00 | E72: =+D71 -> 9 | F72: 3 | G72: 3 | H72: 121 | I72: =+H71 -> 109 | J72: =+H72-I72 -> 12 | M72: 8 | N72: 3 | O72: 2 | P72: 109 | Q72: 109.5 | R72: -0.5
M73: 9 | N73: 3 | O73: 3 | P73: 121 | Q73: 109 | R73: 12
E74: =+D71 -> 9 | F74: 1 | G74: 3 | H74: 121 | I74: =+(H75+H76)/2 -> 97.5 | J74: =+H74-I74 -> 23.5 | M74: 10 | N74: 3 | O74: 3 | P74: 121 | Q74: 109 | R74: 12
E75: =+D71 -> 9 | F75: 4 | G75: 1 | H75: 97 | I75: =+(H74+H76)/2 -> 109.5 | J75: -12.5 | M75: 11 | N75: 3 | O75: 1 | P75: 108 | Q75: 115 | R75: -7
E76: =+D71 -> 9 | F76: 5 | G76: 2 | H76: 98 | I76: =+(H74+H75)/2 -> 109 | J76: -11 | M76: 12 | N76: 3 | O76: 1 | P76: 111 | Q76: 121 | R76: -10
A77: 00:05:00 | C77: =IF(Z71=5,A77,B77) -> 00:05:00 | M77: 13 | N77: 3 | O77: 3 | P77: 121 | Q77: 107 | R77: 14
A78: Inici | B78: 04:22:00 | C78: =IF(Z78=5,B79-B78,0) -> 00:33:00 | D78: =+D71+1 -> 10 | E78: =+D78 -> 10 | F78: 4 | G78: 3 | H78: 121 | I78: =+H79 -> 108 | J78: =+H78-I78 -> 13 | M78: 14 | N78: 3 | O78: 3 | P78: 121 | Q78: 89.5 | R78: 31.5 | Z78: =COUNTA(G78:G83) -> 5
A79: Final | B79: 04:55:00 | E79: =+D78 -> 10 | F79: 5 | G79: 1 | H79: 108 | I79: =+H78 -> 121 | J79: =+H79-I79 -> -13 | M79: 15 | N79: 3 | Q79: 0 | R79: 0
M80: 16 | N80: 3 | Q80: 0 | R80: 0
E81: =+D78 -> 10 | F81: 1 | G81: 2 | H81: 110 | I81: =+(H82+H83)/2 -> 114.5 | J81: =+H81-I81 -> -4.5 | M81: 17 | N81: 3 | Q81: 0 | R81: 0
E82: =+D78 -> 10 | F82: 2 | G82: 1 | H82: 108 | I82: =+(H81+H83)/2 -> 115.5 | J82: -7.5 | M82: 18 | N82: 3 | Q82: 0 | R82: 0
E83: =+D78 -> 10 | F83: 3 | G83: 3 | H83: 121 | I83: =+(H81+H82)/2 -> 109 | J83: 12 | M83: 19 | N83: 3 | Q83: 0 | R83: 0
A84: 00:05:00 | C84: =IF(Z78=5,A84,B84) -> 00:05:00 | M84: 20 | N84: 3 | Q84: 0 | R84: 0
A85: Inici | B85: 05:09:00 | C85: =IF(Z85=5,B86-B85,0) -> 00:37:00 | D85: =+D78+1 -> 11 | E85: =+D85 -> 11 | F85: 1 | G85: 3 | H85: 121 | I85: =+H86 -> 109 | J85: =+H85-I85 -> 12 | M85: 21 | N85: 3 | Q85: 0 | R85: 0 | Z85: =COUNTA(G85:G90) -> 5
A86: Final | B86: 05:46:00 | E86: =+D85 -> 11 | F86: 2 | G86: 1 | H86: 109 | I86: =+H85 -> 121 | J86: =+H86-I86 -> -12 | M86: 22 | N86: 3 | Q86: 0 | R86: 0
M87: 23 | N87: 3 | Q87: 0 | R87: 0
E88: =+D85 -> 11 | F88: 3 | G88: 1 | H88: 108 | I88: =+(H89+H90)/2 -> 115 | J88: =+H88-I88 -> -7 | M88: 24 | N88: 3 | Q88: 0 | R88: 0
E89: =+D85 -> 11 | F89: 4 | G89: 3 | H89: 121 | I89: =+(H88+H90)/2 -> 108.5 | J89: 12.5 | M89: 25 | N89: 3 | Q89: 0 | R89: 0
E90: =+D85 -> 11 | F90: 5 | G90: 2 | H90: 109 | I90: =+(H88+H89)/2 -> 114.5 | J90: -5.5 | M90: 1 | N90: 4 | O90: 3 | P90: 121 | Q90: 109.5 | R90: 11.5 | T90: =SUM(O90:O114) -> 30 | U90: =SUM(P90:P114) -> 1570 | V90: =SUM(Q90:Q114) -> 1553 | W90: =SUM(R90:R114) -> 17
A91: 00:05:00 | C91: =IF(Z85=5,A91,B91) -> 00:05:00 | M91: 2 | N91: 4 | O91: 1 | P91: 106 | Q91: 121 | R91: -15
A92: Inici | B92: 05:52:00 | C92: =IF(Z92=5,B93-B92,0) -> 00:34:00 | D92: =+D85+1 -> 12 | E92: =+D92 -> 12 | F92: 3 | G92: 1 | H92: 111 | I92: =+H93 -> 121 | J92: =+H92-I92 -> -10 | M92: 3 | N92: 4 | O92: 3 | P92: 121 | Q92: 110 | R92: 11 | Z92: =COUNTA(G92:G97) -> 5
A93: Final | B93: 06:26:00 | E93: =+D92 -> 12 | F93: 4 | G93: 3 | H93: 121 | I93: =+H92 -> 111 | J93: =+H93-I93 -> 10 | M93: 4 | N93: 4 | O93: 1 | P93: 109 | Q93: 118.5 | R93: -9.5
M94: 5 | N94: 4 | O94: 1 | P94: 111 | Q94: 121 | R94: -10
E95: =+D92 -> 12 | F95: 1 | G95: 2 | H95: 107 | I95: =+(H96+H97)/2 -> 110 | J95: =+H95-I95 -> -3 | M95: 6 | N95: 4 | O95: 2 | P95: 106 | Q95: 112 | R95: -6
E96: =+D92 -> 12 | F96: 2 | G96: 3 | H96: 121 | I96: =+(H95+H97)/2 -> 103 | J96: 18 | M96: 7 | N96: 4 | O96: 3 | P96: 121 | Q96: 108.5 | R96: 12.5
E97: =+D92 -> 12 | F97: 5 | G97: 1 | H97: 99 | I97: =+(H95+H96)/2 -> 114 | J97: -15 | M97: 8 | N97: 4 | O97: 3 | P97: 121 | Q97: 92 | R97: 29
A98: 00:05:00 | C98: =IF(Z92=5,A98,B98) -> 00:05:00 | M98: 9 | N98: 4 | O98: 1 | P98: 97 | Q98: 109.5 | R98: -12.5
A99: Inici | B99: 06:32:00 | C99: =IF(Z99=5,B100-B99,0) -> 00:39:00 | D99: =+D92+1 -> 13 | E99: =+D99 -> 13 | F99: 1 | G99: 1 | H99: 107 | I99: =+H100 -> 121 | J99: =+H99-I99 -> -14 | M99: 10 | N99: 4 | O99: 3 | P99: 121 | Q99: 108 | R99: 13 | Z99: =COUNTA(G99:G104) -> 5
A100: Final | B100: 07:11:00 | E100: =+D99 -> 13 | F100: 3 | G100: 3 | H100: 121 | I100: =+H99 -> 107 | J100: =+H100-I100 -> 14 | M100: 11 | N100: 4 | O100: 3 | P100: 121 | Q100: 108.5 | R100: 12.5
M101: 12 | N101: 4 | O101: 3 | P101: 121 | Q101: 111 | R101: 10
E102: =+D99 -> 13 | F102: 2 | G102: 2 | H102: 118 | I102: =+(H103+H104)/2 -> 111.5 | J102: =+H102-I102 -> 6.5 | M102: 13 | N102: 4 | O102: 1 | P102: 102 | Q102: 119.5 | R102: -17.5
E103: =+D99 -> 13 | F103: 4 | G103: 1 | H103: 102 | I103: =+(H102+H104)/2 -> 119.5 | J103: -17.5 | M103: 14 | N103: 4 | O103: 2 | P103: 92 | Q103: 104 | R103: -12
E104: =+D99 -> 13 | F104: 5 | G104: 3 | H104: 121 | I104: =+(H102+H103)/2 -> 110 | J104: 11 | M104: 15 | N104: 4 | Q104: 0 | R104: 0
A105: 00:05:00 | C105: =IF(Z99=5,A105,B105) -> 00:05:00 | M105: 16 | N105: 4 | Q105: 0 | R105: 0
A106: Inici | B106: 07:17:00 | C106: =IF(Z106=5,B107-B106,0) -> 00:27:00 | D106: =+D99+1 -> 14 | E106: =+D106 -> 14 | F106: 2 | G106: 1 | H106: 109 | I106: =+H107 -> 121 | J106: =+H106-I106 -> -12 | M106: 17 | N106: 4 | Q106: 0 | R106: 0 | Z106: =COUNTA(G106:G111) -> 5
A107: Final | B107: 07:44:00 | E107: =+D106 -> 14 | F107: 5 | G107: 3 | H107: 121 | I107: =+H106 -> 109 | J107: =+H107-I107 -> 12 | M107: 18 | N107: 4 | Q107: 0 | R107: 0
M108: 19 | N108: 4 | Q108: 0 | R108: 0
E109: =+D106 -> 14 | F109: 1 | G109: 1 | H109: 87 | I109: =+(H110+H111)/2 -> 106.5 | J109: =+H109-I109 -> -19.5 | M109: 20 | N109: 4 | Q109: 0 | R109: 0
E110: =+D106 -> 14 | F110: 3 | G110: 3 | H110: 121 | I110: =+(H109+H111)/2 -> 89.5 | J110: 31.5 | M110: 21 | N110: 4 | Q110: 0 | R110: 0
E111: =+D106 -> 14 | F111: 4 | G111: 2 | H111: 92 | I111: =+(H109+H110)/2 -> 104 | J111: -12 | M111: 22 | N111: 4 | Q111: 0 | R111: 0
A112: 00:05:00 | M112: 23 | N112: 4 | Q112: 0 | R112: 0
A113: Inici | C113: =IF(Z113=5,B114-B113,0) -> 00:00:00 | D113: =+D106+1 -> 15 | E113: =+D113 -> 15 | F113: 1 | I113: =+H114 -> 0 | J113: =+H113-I113 -> 0 | M113: 24 | N113: 4 | Q113: 0 | R113: 0 | Z113: =COUNTA(G113:G118) -> 0
A114: Final | E114: =+D113 -> 15 | F114: 4 | I114: =+H113 -> 0 | J114: =+H114-I114 -> 0 | M114: 25 | N114: 4 | Q114: 0 | R114: 0
M115: 1 | N115: 5 | O115: 2 | P115: 110 | Q115: 115 | R115: -5 | T115: =SUM(O115:O139) -> 28 | U115: =SUM(P115:P139) -> 1537 | V115: =SUM(Q115:Q139) -> 1559.5 | W115: =SUM(R115:R139) -> -22.5
E116: =+D113 -> 15 | F116: 2 | I116: =+(H117+H118)/2 -> 0 | J116: =+H116-I116 -> 0 | M116: 2 | N116: 5 | O116: 1 | P116: 92 | Q116: 112 | R116: -20
E117: =+D113 -> 15 | F117: 3 | I117: =+(H116+H118)/2 -> 0 | J117: 0 | M117: 3 | N117: 5 | O117: 1 | P117: 100 | Q117: 120.5 | R117: -20.5
E118: =+D113 -> 15 | F118: 5 | I118: =+(H116+H117)/2 -> 0 | J118: 0 | M118: 4 | N118: 5 | O118: 3 | P118: 121 | Q118: 84 | R118: 37
A119: 00:05:00 | C119: =IF(Z113=5,A119,B119) -> 00:00:00 | M119: 5 | N119: 5 | O119: 2 | P119: 117 | Q119: 116 | R119: 1
A120: Inici | C120: =IF(Z120=5,B121-B120,0) -> 00:00:00 | D120: =+D113+1 -> 16 | E120: =+D120 -> 16 | F120: 3 | I120: =+H121 -> 0 | J120: =+H120-I120 -> 0 | M120: 6 | N120: 5 | O120: 3 | P120: 121 | Q120: 110 | R120: 11 | Z120: =COUNTA(G120:G125) -> 0
A121: Final | E121: =+D120 -> 16 | F121: 5 | I121: =+H120 -> 0 | J121: =+H121-I121 -> 0 | M121: 7 | N121: 5 | O121: 1 | P121: 99 | Q121: 121 | R121: -22
M122: 8 | N122: 5 | O122: 3 | P122: 121 | Q122: 103.5 | R122: 17.5
E123: =+D120 -> 16 | F123: 1 | I123: =+(H124+H125)/2 -> 0 | J123: =+H123-I123 -> 0 | M123: 9 | N123: 5 | O123: 2 | P123: 98 | Q123: 109 | R123: -11
E124: =+D120 -> 16 | F124: 2 | I124: =+(H123+H125)/2 -> 0 | J124: 0 | M124: 10 | N124: 5 | O124: 1 | P124: 108 | Q124: 121 | R124: -13
E125: =+D120 -> 16 | F125: 4 | I125: =+(H123+H124)/2 -> 0 | J125: 0 | M125: 11 | N125: 5 | O125: 2 | P125: 109 | Q125: 114.5 | R125: -5.5
A126: 00:05:00 | C126: =IF(Z120=5,A126,B126) -> 00:00:00 | M126: 12 | N126: 5 | O126: 1 | P126: 99 | Q126: 114 | R126: -15
A127: Inici | C127: =IF(Z127=5,B128-B127,0) -> 00:00:00 | D127: =+D120+1 -> 17 | E127: =+D127 -> 17 | F127: 1 | I127: =+H128 -> 0 | J127: =+H127-I127 -> 0 | M127: 13 | N127: 5 | O127: 3 | P127: 121 | Q127: 110 | R127: 11 | Z127: =COUNTA(G127:G132) -> 0
A128: Final | E128: =+D127 -> 17 | F128: 5 | I128: =+H127 -> 0 | J128: =+H128-I128 -> 0 | M128: 14 | N128: 5 | O128: 3 | P128: 121 | Q128: 109 | R128: 12
M129: 15 | N129: 5 | Q129: 0 | R129: 0
E130: =+D127 -> 17 | F130: 2 | I130: =+(H131+H132)/2 -> 0 | J130: =+H130-I130 -> 0 | M130: 16 | N130: 5 | Q130: 0 | R130: 0
E131: =+D127 -> 17 | F131: 3 | I131: =+(H130+H132)/2 -> 0 | J131: 0 | M131: 17 | N131: 5 | Q131: 0 | R131: 0
E132: =+D127 -> 17 | F132: 4 | I132: =+(H130+H131)/2 -> 0 | J132: 0 | M132: 18 | N132: 5 | Q132: 0 | R132: 0
A133: 00:05:00 | C133: =IF(Z127=5,A133,B133) -> 00:00:00 | M133: 19 | N133: 5 | Q133: 0 | R133: 0
A134: Inici | C134: =IF(Z134=5,B135-B134,0) -> 00:00:00 | D134: =+D127+1 -> 18 | E134: =+D134 -> 18 | F134: 2 | I134: =+H135 -> 0 | J134: =+H134-I134 -> 0 | M134: 20 | N134: 5 | Q134: 0 | R134: 0 | Z134: =COUNTA(G134:G139) -> 0
A135: Final | E135: =+D134 -> 18 | F135: 4 | I135: =+H134 -> 0 | J135: =+H135-I135 -> 0 | M135: 21 | N135: 5 | Q135: 0 | R135: 0
M136: 22 | N136: 5 | Q136: 0 | R136: 0
E137: =+D134 -> 18 | F137: 1 | I137: =+(H138+H139)/2 -> 0 | J137: =+H137-I137 -> 0 | M137: 23 | N137: 5 | Q137: 0 | R137: 0
E138: =+D134 -> 18 | F138: 3 | I138: =+(H137+H139)/2 -> 0 | J138: 0 | M138: 24 | N138: 5 | Q138: 0 | R138: 0
E139: =+D134 -> 18 | F139: 5 | I139: =+(H137+H138)/2 -> 0 | J139: 0 | M139: 25 | N139: 5 | Q139: 0 | R139: 0
A140: 00:05:00 | C140: =IF(Z134=5,A140,B140) -> 00:00:00
A141: Inici | C141: =IF(Z141=5,B142-B141,0) -> 00:00:00 | D141: =+D134+1 -> 19 | E141: =+D141 -> 19 | F141: 2 | I141: =+H142 -> 0 | J141: =+H141-I141 -> 0 | Z141: =COUNTA(G141:G146) -> 0
A142: Final | E142: =+D141 -> 19 | F142: 3 | I142: =+H141 -> 0 | J142: =+H142-I142 -> 0
E144: =+D141 -> 19 | F144: 1 | I144: =+(H145+H146)/2 -> 0 | J144: =+H144-I144 -> 0
E145: =+D141 -> 19 | F145: 4 | I145: =+(H144+H146)/2 -> 0 | J145: 0
E146: =+D141 -> 19 | F146: 5 | I146: =+(H144+H145)/2 -> 0 | J146: 0
A147: 00:05:00 | C147: =IF(Z141=5,A147,B147) -> 00:00:00
A148: Inici | C148: =IF(Z148=5,B149-B148,0) -> 00:00:00 | D148: =+D141+1 -> 20 | E148: =+D148 -> 20 | F148: 4 | I148: =+H149 -> 0 | J148: =+H148-I148 -> 0 | Z148: =COUNTA(G148:G153) -> 0
A149: Final | E149: =+D148 -> 20 | F149: 5 | I149: =+H148 -> 0 | J149: =+H149-I149 -> 0
E151: =+D148 -> 20 | F151: 1 | I151: =+(H152+H153)/2 -> 0 | J151: =+H151-I151 -> 0
E152: =+D148 -> 20 | F152: 2 | I152: =+(H151+H153)/2 -> 0 | J152: 0
E153: =+D148 -> 20 | F153: 3 | I153: =+(H151+H152)/2 -> 0 | J153: 0
A154: 00:05:00 | C154: =IF(Z148=5,A154,B154) -> 00:00:00
A155: Inici | C155: =IF(Z155=5,B156-B155,0) -> 00:00:00 | D155: =+D148+1 -> 21 | E155: =+D155 -> 21 | F155: 1 | I155: =+H156 -> 0 | J155: =+H155-I155 -> 0 | Z155: =COUNTA(G155:G160) -> 0
A156: Final | E156: =+D155 -> 21 | F156: 2 | I156: =+H155 -> 0 | J156: =+H156-I156 -> 0
E158: =+D155 -> 21 | F158: 3 | I158: =+(H159+H160)/2 -> 0 | J158: =+H158-I158 -> 0
E159: =+D155 -> 21 | F159: 4 | I159: =+(H158+H160)/2 -> 0 | J159: 0
E160: =+D155 -> 21 | F160: 5 | I160: =+(H158+H159)/2 -> 0 | J160: 0
A161: 00:05:00 | C161: =IF(Z155=5,A161,B161) -> 00:00:00
A162: Inici | C162: =IF(Z162=5,B163-B162,0) -> 00:00:00 | D162: =+D155+1 -> 22 | E162: =+D162 -> 22 | F162: 3 | I162: =+H163 -> 0 | J162: =+H162-I162 -> 0 | Z162: =COUNTA(G162:G167) -> 0
A163: Final | E163: =+D162 -> 22 | F163: 4 | I163: =+H162 -> 0 | J163: =+H163-I163 -> 0
E165: =+D162 -> 22 | F165: 1 | I165: =+(H166+H167)/2 -> 0 | J165: =+H165-I165 -> 0
E166: =+D162 -> 22 | F166: 2 | I166: =+(H165+H167)/2 -> 0 | J166: 0
E167: =+D162 -> 22 | F167: 5 | I167: =+(H165+H166)/2 -> 0 | J167: 0
A168: 00:05:00 | C168: =IF(Z162=5,A168,B168) -> 00:00:00
A169: Inici | C169: =IF(Z169=5,B170-B169,0) -> 00:00:00 | D169: =+D162+1 -> 23 | E169: =+D169 -> 23 | F169: 1 | I169: =+H170 -> 0 | J169: =+H169-I169 -> 0 | Z169: =COUNTA(G169:G174) -> 0
A170: Final | E170: =+D169 -> 23 | F170: 3 | I170: =+H169 -> 0 | J170: =+H170-I170 -> 0
E172: =+D169 -> 23 | F172: 2 | I172: =+(H173+H174)/2 -> 0 | J172: =+H172-I172 -> 0
E173: =+D169 -> 23 | F173: 4 | I173: =+(H172+H174)/2 -> 0 | J173: 0
E174: =+D169 -> 23 | F174: 5 | I174: =+(H172+H173)/2 -> 0 | J174: 0
A175: 00:05:00 | C175: =IF(Z169=5,A175,B175) -> 00:00:00
A176: Inici | C176: =IF(Z176=5,B177-B176,0) -> 00:00:00 | D176: =+D169+1 -> 24 | E176: =+D176 -> 24 | F176: 2 | I176: =+H177 -> 0 | J176: =+H176-I176 -> 0 | Z176: =COUNTA(G176:G181) -> 0
A177: Final | E177: =+D176 -> 24 | F177: 5 | I177: =+H176 -> 0 | J177: =+H177-I177 -> 0
E179: =+D176 -> 24 | F179: 1 | I179: =+(H180+H181)/2 -> 0 | J179: =+H179-I179 -> 0
E180: =+D176 -> 24 | F180: 3 | I180: =+(H179+H181)/2 -> 0 | J180: 0
E181: =+D176 -> 24 | F181: 4 | I181: =+(H179+H180)/2 -> 0 | J181: 0
A182: 00:05:00 | C182: =IF(Z176=5,A182,B182) -> 00:00:00
A183: Inici | C183: =IF(Z183=5,B184-B183,0) -> 00:00:00 | D183: =+D176+1 -> 25 | E183: =+D183 -> 25 | F183: 1 | I183: =+H184 -> 0 | J183: =+H183-I183 -> 0 | Z183: =COUNTA(G183:G188) -> 0
A184: Final | E184: =+D183 -> 25 | F184: 4 | I184: =+H183 -> 0 | J184: =+H184-I184 -> 0
E186: =+D183 -> 25 | F186: 2 | I186: =+(H187+H188)/2 -> 0 | J186: =+H186-I186 -> 0
E187: =+D183 -> 25 | F187: 3 | I187: =+(H186+H188)/2 -> 0 | J187: 0
E188: =+D183 -> 25 | F188: 5 | I188: =+(H186+H187)/2 -> 0 | J188: 0
A189: 00:05:00 | C189: =IF(Z183=5,A189,B189) -> 00:00:00

Sheet Hoja2

Sheet Hoja3
